[Event "DVM U10 2024"]
[Site "Duesseldorf"]
[Date "2024.12.27"]
[Round "2"]
[White "Ni, Wilhelm Zeyin"]
[Black "Jozsa, Lev"]
[Result "1-0"]
[ECO "C42"]
[WhiteElo "1611"]
[BlackElo "1617"]
[Annotator "NA RC"]
[PlyCount "93"]
[EventDate "2024.12.23"]
[EventType "team-tourn"]
[EventRounds "7"]
[EventCountry "GER"]
[SourceTitle "playchess.com"]
[Source "ChessBase"]
[SourceQuality "1"]
[TimeControl "3300+5"]

1. e4 {[%emt 0:00:03]} e5 {[%emt 0:00:03]} 2. Nf3 {[%emt 0:00:07]} Nf6 {[%emt 0:00:04]} 3. Nxe5 {[%emt 0:00:28]} Nc6 {[%emt 0:00:08]} 4. Nxc6 {[%emt 0:00:28]} dxc6 {[%emt 0:00:05]} 5. Nc3 {[%emt 0:00:12]} Bc5 {[%emt 0:00:05]} 6. Bc4 {[%emt 0:00:28]} Bxf2+ {[%emt 0:03:43]} 7. Kxf2 {[%emt 0:00:30]} Qd4+ {[%emt 0:00:37]} 8. Ke1 {[%emt 0:00:56]} Qxc4 {[%emt 0:02:00]} 9. d3 {[%emt 0:00:12]} Qd4 {[%emt 0:00:43]} 10. Qf3 {[%emt 0:06:07]} Bg4 {[%emt 0:03:41]} 11. Qe3 {[%emt 0:00:10]} O-O-O {[%emt 0:04:19]} 12. Qxd4 {[%emt 0:00:35]} Rxd4 {[%emt 0:00:21]} 13. Be3 {[%emt 0:00:18]} Rd7 {[%emt 0:00:42]} 14. h3 {[%emt 0:00:29]} Bh5 {[%emt 0:03:07]} 15. g4 {[%emt 0:01:28]} Bg6 {[%emt 0:01:25]} 16. Ke2 {[%emt 0:01:17]} Re8 {[%emt 0:01:29]} 17. Raf1 {[%emt 0:04:34]} Rde7 {[%emt 0:00:51]} 18. h4 {[%emt 0:04:37]} h6 {[%emt 0:01:44]} 19. h5 {[%emt 0:02:22]} Bh7 {[%emt 0:02:30]} 20. g5 {[%emt 0:00:31]} Ng4 {[%emt 0:04:47]} 21. gxh6 {[%emt 0:01:36]} Nxe3 {[%emt 0:01:43]} 22. Kxe3 {[%emt 0:00:11]} gxh6 {[%emt 0:01:03]} 23. Rf6 {[%emt 0:01:11]} Re6 {[%emt 0:02:18]} 24. Rxf7 {[%emt 0:00:54]} R8e7 {[%emt 0:02:30]} 25. Rxe7 {[%emt 0:01:02]} Rxe7 {[%emt 0:00:34]} 26. Rf1 {[%emt 0:00:38]} Kd7 {[%emt 0:03:13]} 27. Rf6 {[%emt 0:00:30]} Re6 {[%emt 0:00:45]} 28. Rxe6 {[%emt 0:01:28]} Kxe6 {[%emt 0:00:10]} 29. Kf4 {[%emt 0:00:15]} Bg8 {[%emt 0:00:33]} 30. Ne2 {[%emt 0:01:18]} Kf6 {[%emt 0:01:04]} 31. e5+ {[%emt 0:00:54]} Ke6 {[%emt 0:02:05]} 32. Nd4+ {[%emt 0:00:44]} Kd5 {[%emt 0:00:54]} 33. Nf5 {[%emt 0:00:52]} Bf7 {[%emt 0:00:25]} 34. Nxh6 {[%emt 0:00:29]} Bxh5 {[%emt 0:00:04]} 35. Kf5 {[%emt 0:01:18]} Be8 {[%emt 0:01:00]} 36. e6 {[%emt 0:02:04]} Kd6 {[%emt 0:00:23]} 37. Kf6 {[%emt 0:00:13]} c5 {[%emt 0:00:17]} 38. Nf7+ {[%emt 0:00:16]} Kc6 {[%emt 0:01:06]} 39. Ke7 {[%emt 0:00:08]} Kd5 {[%emt 0:00:11]} 40. Kxe8 {[%emt 0:00:23]} Kxe6 {[%emt 0:00:06]} 41. Nd8+ {[%emt 0:00:19]} Kd6 {[%emt 0:00:14]} 42. Nxb7+ {[%emt 0:00:07]} Kc6 {[%emt 0:00:03]} 43. Na5+ {[%emt 0:00:16]} Kb5 {[%emt 0:00:06]} 44. Nc4 {[%emt 0:00:30]} a5 {[%emt 0:00:06]} 45. Kd7 {[%emt 0:00:13]} c6 {[%emt 0:00:08]} 46. Nxa5 {[%emt 0:00:17]} Kxa5 {[%emt 0:00:11]} 47. Kxc6 {[%emt 0:00:09]} 1-0

[Event "DVM U10 2024"]
[Site "Duesseldorf"]
[Date "2024.12.27"]
[Round "2"]
[White "Riazi, Dominik"]
[Black "Braren, Ove Neelis"]
[Result "1/2-1/2"]
[ECO "C56"]
[WhiteElo "1602"]
[BlackElo "1634"]
[Annotator "NA RC"]
[PlyCount "46"]
[EventDate "2024.12.23"]
[EventType "team-tourn"]
[EventRounds "7"]
[EventCountry "GER"]
[SourceTitle "playchess.com"]
[Source "ChessBase"]
[SourceQuality "1"]
[TimeControl "3300+5"]

1. e4 {[%emt 0:00:02]} e5 {[%emt 0:00:10]} 2. Nf3 {[%emt 0:00:04]} Nc6 {[%emt 0:00:05]} 3. d4 {[%emt 0:00:03]} exd4 {[%emt 0:00:15]} 4. Bc4 {[%emt 0:00:05]} Nf6 {[%emt 0:00:13]} 5. O-O {[%emt 0:00:20]} Nxe4 {[%emt 0:00:41]} 6. Re1 {[%emt 0:00:01]} d5 {[%emt 0:00:24]} 7. Bxd5 {[%emt 0:00:03]} Qxd5 {[%emt 0:00:15]} 8. Nc3 {[%emt 0:00:06]} Qh5 {[%emt 0:00:23]} 9. Nxe4 {[%emt 0:00:16]} Be6 {[%emt 0:01:14]} 10. Bg5 {[%emt 0:00:00]} Bd6 {[%emt 0:01:30]} 11. Nxd6+ {[%emt 0:00:06]} cxd6 {[%emt 0:00:16]} 12. Bf4 {[%emt 0:00:14]} Qd5 {[%emt 0:06:55]} 13. c3 {[%emt 0:00:20]} O-O {[%emt 0:03:18]} 14. Nxd4 {[%emt 0:00:09]} Nxd4 {[%emt 0:00:45]} 15. Qxd4 {[%emt 0:00:20]} Qxd4 {[%emt 0:00:25]} 16. cxd4 {[%emt 0:00:10]} d5 {[%emt 0:00:49]} 17. Rac1 {[%emt 0:00:44]} Rac8 {[%emt 0:01:00]} 18. Rxc8 {[%emt 0:00:38]} Rxc8 {[%emt 0:00:21]} 19. Rc1 {[%emt 0:01:50]} Kf8 {[%emt 0:01:13]} 20. Rxc8+ {[%emt 0:01:47]} Bxc8 {[%emt 0:00:47]} 21. Kf1 {[%emt 0:00:38]} Ke7 {[%emt 0:00:23]} 22. Ke2 {[%emt 0:00:28]} Bd7 {[%emt 0:00:56]} 23. g3 {[%emt 0:03:35]} Bg4+ {[%emt 0:03:21]} 1/2-1/2

[Event "DVM U10 2024"]
[Site "Duesseldorf"]
[Date "2024.12.27"]
[Round "2"]
[White "von Flottwell, Lionel"]
[Black "Wessels, Keke"]
[Result "1-0"]
[ECO "B22"]
[WhiteElo "1597"]
[BlackElo "1568"]
[Annotator "NA RC"]
[PlyCount "83"]
[EventDate "2024.12.23"]
[EventType "team-tourn"]
[EventRounds "7"]
[EventCountry "GER"]
[SourceTitle "playchess.com"]
[Source "ChessBase"]
[SourceQuality "1"]
[TimeControl "3300+5"]

1. e4 {[%emt 0:00:03]} c5 {[%emt 0:00:06]} 2. Nf3 {[%emt 0:00:21]} Nc6 {[%emt 0:00:29]} 3. c3 {[%emt 0:00:17]} Nf6 {[%emt 0:00:40]} 4. e5 {[%emt 0:00:53]} Nd5 {[%emt 0:00:39]} 5. d4 {[%emt 0:00:55]} cxd4 {[%emt 0:00:29]} 6. cxd4 {[%emt 0:00:19]} e6 {[%emt 0:00:26]} 7. a3 {[%emt 0:01:40]} d6 {[%emt 0:00:37]} 8. b4 {[%emt 0:05:21]} Bd7 {[%emt 0:03:01]} 9. g3 {[%emt 0:02:37]} Rc8 {[%emt 0:01:12]} 10. Bg2 {[%emt 0:02:09]} Nb8 {[%emt 0:01:21]} 11. O-O {[%emt 0:00:51]} Be7 {[%emt 0:01:10]} 12. h4 {[%emt 0:04:35]} Bc6 {[%emt 0:02:40]} 13. Nfd2 {[%emt 0:04:22]} Nd7 {[%emt 0:04:23]} 14. Qg4 {[%emt 0:02:50]} g6 {[%emt 0:10:48]} 15. Re1 {[%emt 0:02:43]} N7b6 {[%emt 0:02:36]} 16. Ne4 {[%emt 0:05:07]} h5 {[%emt 0:02:02]} 17. Qe2 {[%emt 0:07:49]} a6 {[%emt 0:04:40]} 18. Bg5 {[%emt 0:00:53]} Bxg5 {[%emt 0:02:11]} 19. Nxd6+ {[%emt 0:01:24]} Kf8 {[%emt 0:03:41]} 20. Nxc8 {[%emt 0:00:50]} Bb5 {[%emt 0:01:38]} 21. Qc2 {[%emt 0:01:09]} Nxc8 {[%emt 0:01:16]} 22. hxg5 {[%emt 0:01:32]} Nce7 {[%emt 0:01:35]} 23. a4 {[%emt 0:01:45]} Nxb4 {[%emt 0:03:38]} 24. Qd2 {[%emt 0:02:06]} Nd3 {[%emt 0:01:27]} 25. axb5 {[%emt 0:00:43]} Nxe1 {[%emt 0:00:03]} 26. Bxb7 {[%emt 0:00:36]} Nd5 {[%emt 0:00:47]} 27. Qxe1 {[%emt 0:00:08]} Nb6 {[%emt 0:00:44]} 28. bxa6 {[%emt 0:00:02]} Kg7 {[%emt 0:00:05]} 29. a7 {[%emt 0:00:06]} Na8 {[%emt 0:00:22]} 30. Qb4 {[%emt 0:00:16]} Qc7 {[%emt 0:00:30]} 31. Nc3 {[%emt 0:00:04]} Rd8 {[%emt 0:00:15]} 32. Ne4 {[%emt 0:00:01]} Qd7 {[%emt 0:00:21]} 33. Nf6 {[%emt 0:00:09]} Qc7 {[%emt 0:00:18]} 34. Qb5 {[%emt 0:00:11]} Kh8 {[%emt 0:00:15]} 35. Qc6 {[%emt 0:00:17]} Qe7 {[%emt 0:00:13]} 36. Bxa8 {[%emt 0:00:07]} Qf8 {[%emt 0:00:10]} 37. Bb7 {[%emt 0:00:03]} Kg7 {[%emt 0:00:16]} 38. a8=Q {[%emt 0:00:04]} Rxa8 {[%emt 0:00:01]} 39. Rxa8 {[%emt 0:00:03]} Qxa8 {[%emt 0:00:11]} 40. Bxa8 {[%emt 0:00:03]} h4 {[%emt 0:00:03]} 41. Qe8 {[%emt 0:00:05]} h3 {[%emt 0:00:15]} 42. Qg8# {[%emt 0:00:02]} 1-0

[Event "DVM U10 2024"]
[Site "Duesseldorf"]
[Date "2024.12.27"]
[Round "2"]
[White "Marx, Jakob"]
[Black "Pawlus, Daniel"]
[Result "1-0"]
[ECO "B21"]
[WhiteElo "1591"]
[BlackElo "1521"]
[Annotator "NA RC"]
[PlyCount "49"]
[EventDate "2024.12.23"]
[EventType "team-tourn"]
[EventRounds "7"]
[EventCountry "GER"]
[SourceTitle "playchess.com"]
[Source "ChessBase"]
[SourceQuality "1"]
[TimeControl "3300+5"]

1. e4 {[%emt 0:00:02]} c5 {[%emt 0:00:06]} 2. d4 {[%emt 0:00:04]} cxd4 {[%emt 0:00:20]} 3. c3 {[%emt 0:00:16]} dxc3 {[%emt 0:03:10]} 4. Nxc3 {[%emt 0:00:07]} Nc6 {[%emt 0:00:51]} 5. Nf3 {[%emt 0:00:05]} d6 {[%emt 0:00:20]} 6. Bc4 {[%emt 0:00:11]} g6 {[%emt 0:01:22]} 7. Qb3 {[%emt 0:01:49]} e6 {[%emt 0:01:20]} 8. Bg5 {[%emt 0:01:42]} Nf6 {[%emt 0:01:27]} 9. Rd1 {[%emt 0:01:03]} Bg7 {[%emt 0:01:38]} 10. e5 {[%emt 0:00:21]} d5 {[%emt 0:05:11]} 11. exf6 {[%emt 0:00:07]} Bxf6 {[%emt 0:00:32]} 12. Bf4 {[%emt 0:00:57]} Be7 {[%emt 0:01:32]} 13. Bxd5 {[%emt 0:01:50]} exd5 {[%emt 0:02:09]} 14. Nxd5 {[%emt 0:00:16]} Qa5+ {[%emt 0:01:13]} 15. Bd2 {[%emt 0:01:01]} Qc5 {[%emt 0:01:15]} 16. Nc7+ {[%emt 0:00:44]} Kf8 {[%emt 0:01:35]} 17. Bh6+ {[%emt 0:00:43]} Kg8 {[%emt 0:00:19]} 18. Nxa8 {[%emt 0:00:21]} Bf6 {[%emt 0:03:13]} 19. O-O {[%emt 0:00:48]} Qh5 {[%emt 0:00:05]} 20. Qe3 {[%emt 0:00:05]} Be6 {[%emt 0:00:05]} 21. Rd6 {[%emt 0:00:05]} Ne5 {[%emt 0:00:05]} 22. Qxe5 {[%emt 0:00:05]} Qxh6 23. Qxf6 Qg7 {[%emt 0:08:22]} 24. Rd8+ {[%emt 0:02:35]} Qf8 {[%emt 0:00:08]} 25. Rfd1 {[%emt 0:00:08]} 1-0

[Event "DVM U10 2024"]
[Site "Duesseldorf"]
[Date "2024.12.27"]
[Round "2"]
[White "Nikolic, Luka"]
[Black "Schacht, Jakob Otto"]
[Result "1-0"]
[ECO "D37"]
[WhiteElo "1579"]
[BlackElo "1064"]
[Annotator "NA RC"]
[PlyCount "109"]
[EventDate "2024.12.23"]
[EventType "team-tourn"]
[EventRounds "7"]
[EventCountry "GER"]
[SourceTitle "playchess.com"]
[Source "ChessBase"]
[SourceQuality "1"]
[TimeControl "3300+5"]

1. d4 {[%emt 0:00:10]} d5 {[%emt 0:00:02]} 2. c4 {[%emt 0:00:05]} e6 {[%emt 0:00:13]} 3. Nc3 {[%emt 0:00:04]} Nf6 {[%emt 0:00:11]} 4. Bf4 {[%emt 0:00:05]} Be7 {[%emt 0:00:00]} 5. Nf3 {[%emt 0:01:25]} O-O {[%emt 0:00:09]} 6. e3 {[%emt 0:00:00]} b6 {[%emt 0:00:19]} 7. Nb5 {[%emt 0:00:00]} Bd6 {[%emt 0:01:16]} 8. Bxd6 {[%emt 0:00:01]} cxd6 {[%emt 0:00:57]} 9. Be2 {[%emt 0:00:10]} Ba6 {[%emt 0:02:44]} 10. Na3 {[%emt 0:00:51]} Nbd7 {[%emt 0:00:43]} 11. O-O {[%emt 0:01:25]} Rc8 {[%emt 0:00:20]} 12. Qa4 {[%emt 0:02:03]} Nb8 {[%emt 0:01:07]} 13. Nb5 {[%emt 0:05:02]} Bxb5 {[%emt 0:01:07]} 14. cxb5 {[%emt 0:02:29]} Qc7 {[%emt 0:01:14]} 15. b4 {[%emt 0:05:52]} Qb7 {[%emt 0:08:10]} 16. Rac1 {[%emt 0:04:10]} Nbd7 {[%emt 0:03:50]} 17. Rc2 {[%emt 0:03:48]} Rxc2 {[%emt 0:04:26]} 18. Qxc2 {[%emt 0:00:34]} Rc8 {[%emt 0:00:25]} 19. Qb1 {[%emt 0:00:51]} Ne4 {[%emt 0:00:10]} 20. Bd3 {[%emt 0:03:17]} Ndf6 {[%emt 0:02:09]} 21. Rc1 {[%emt 0:02:37]} Nc3 {[%emt 0:06:05]} 22. Qb2 {[%emt 0:04:25]} Nce4 {[%emt 0:02:06]} 23. Rxc8+ {[%emt 0:01:10]} Qxc8 {[%emt 0:00:17]} 24. Nd2 {[%emt 0:00:13]} Nxd2 {[%emt 0:00:34]} 25. Qxd2 {[%emt 0:00:05]} Ne4 {[%emt 0:00:16]} 26. Qc2 {[%emt 0:00:40]} Qxc2 {[%emt 0:00:52]} 27. Bxc2 {[%emt 0:00:07]} Nc3 {[%emt 0:00:06]} 28. a4 {[%emt 0:00:26]} Kf8 {[%emt 0:00:19]} 29. f3 {[%emt 0:00:31]} Ke7 {[%emt 0:00:33]} 30. Bb3 {[%emt 0:00:15]} Kf6 {[%emt 0:00:27]} 31. Kf1 {[%emt 0:00:21]} e5 {[%emt 0:02:42]} 32. Ke1 {[%emt 0:02:50]} e4 {[%emt 0:00:51]} 33. fxe4 {[%emt 0:01:05]} Nxe4 {[%emt 0:00:44]} 34. Bxd5 {[%emt 0:00:10]} Ng5 {[%emt 0:00:00]} 35. a5 {[%emt 0:00:38]} Ne6 {[%emt 0:00:33]} 36. Kd2 {[%emt 0:01:20]} Ke7 {[%emt 0:00:30]} 37. Kd3 {[%emt 0:00:16]} Nc7 {[%emt 0:00:37]} 38. Kc4 {[%emt 0:00:41]} Nxd5 {[%emt 0:00:16]} 39. Kxd5 {[%emt 0:00:11]} Kd7 {[%emt 0:00:23]} 40. e4 {[%emt 0:00:30]} h6 {[%emt 0:00:53]} 41. e5 {[%emt 0:00:12]} dxe5 {[%emt 0:00:19]} 42. dxe5 {[%emt 0:00:05]} g6 {[%emt 0:00:27]} 43. h3 {[%emt 0:00:46]} h5 {[%emt 0:00:19]} 44. h4 {[%emt 0:00:10]} Ke7 {[%emt 0:01:55]} 45. axb6 {[%emt 0:00:36]} axb6 {[%emt 0:00:14]} 46. Kc6 {[%emt 0:00:08]} Ke6 {[%emt 0:00:24]} 47. Kxb6 {[%emt 0:00:07]} Kxe5 {[%emt 0:00:13]} 48. Kc6 {[%emt 0:00:15]} g5 {[%emt 0:00:47]} 49. hxg5 {[%emt 0:00:39]} Kf5 {[%emt 0:00:06]} 50. b6 {[%emt 0:00:06]} Kxg5 {[%emt 0:00:03]} 51. b7 {[%emt 0:00:03]} f5 {[%emt 0:00:07]} 52. b8=Q {[%emt 0:00:10]} f4 {[%emt 0:00:16]} 53. Qg8+ {[%emt 0:00:18]} Kh4 {[%emt 0:00:16]} 54. Qc4 {[%emt 0:00:21]} Kg3 {[%emt 0:00:12]} 55. Qe2 {[%emt 0:00:21]} 1-0

[Event "DVM U10 2024"]
[Site "Duesseldorf"]
[Date "2024.12.27"]
[Round "2"]
[White "Sriram, Yashasri"]
[Black "Zentgraf, Raphael"]
[Result "0-1"]
[ECO "B22"]
[WhiteElo "1520"]
[BlackElo "1175"]
[Annotator "NA RC"]
[PlyCount "150"]
[EventDate "2024.12.23"]
[EventType "team-tourn"]
[EventRounds "7"]
[EventCountry "GER"]
[SourceTitle "playchess.com"]
[Source "ChessBase"]
[SourceQuality "1"]
[TimeControl "3300+5"]

1. e4 {[%emt 0:01:03]} c5 {[%emt 0:00:22]} 2. c3 {[%emt 0:00:03]} Nc6 {[%emt 0:00:30]} 3. d4 {[%emt 0:00:23]} cxd4 {[%emt 0:00:10]} 4. cxd4 {[%emt 0:00:14]} e6 {[%emt 0:00:17]} 5. Nc3 {[%emt 0:00:18]} d6 {[%emt 0:00:27]} 6. Nf3 {[%emt 0:00:30]} Nf6 {[%emt 0:00:13]} 7. Bg5 {[%emt 0:00:42]} Be7 {[%emt 0:00:16]} 8. Bc4 {[%emt 0:02:02]} h6 {[%emt 0:00:38]} 9. Bh4 {[%emt 0:00:28]} Nxe4 {[%emt 0:02:55]} 10. Bxe7 {[%emt 0:02:01]} Nxc3 {[%emt 0:00:10]} 11. Bxd8 {[%emt 0:00:18]} Nxd1 {[%emt 0:00:08]} 12. Rxd1 {[%emt 0:00:04]} Nxd8 {[%emt 0:00:13]} 13. O-O {[%emt 0:00:21]} O-O {[%emt 0:00:08]} 14. Rfe1 {[%emt 0:00:13]} d5 {[%emt 0:00:20]} 15. Bd3 {[%emt 0:00:24]} Nc6 {[%emt 0:00:08]} 16. a3 {[%emt 0:00:16]} b6 {[%emt 0:00:17]} 17. b4 {[%emt 0:00:15]} Bb7 {[%emt 0:00:50]} 18. b5 {[%emt 0:00:24]} Ne7 {[%emt 0:00:07]} 19. Ne5 {[%emt 0:00:36]} Rfd8 {[%emt 0:00:35]} 20. Rc1 {[%emt 0:00:40]} Rac8 {[%emt 0:00:38]} 21. g4 {[%emt 0:00:58]} Rxc1 22. Rxc1 {[%emt 0:00:21]} Rc8 {[%emt 0:00:34]} 23. Rxc8+ Bxc8 {[%emt 0:00:07]} 24. Kf1 {[%emt 0:01:07]} f6 {[%emt 0:00:36]} 25. Nf3 {[%emt 0:00:41]} Kf8 {[%emt 0:00:57]} 26. Ke1 {[%emt 0:00:30]} Kf7 {[%emt 0:00:33]} 27. Kd2 {[%emt 0:00:29]} Ng6 {[%emt 0:00:14]} 28. Kc3 {[%emt 0:00:45]} Nf4 {[%emt 0:00:15]} 29. Bf1 {[%emt 0:00:14]} Ke7 {[%emt 0:00:30]} 30. Kb4 {[%emt 0:00:42]} Kd6 {[%emt 0:00:28]} 31. a4 {[%emt 0:00:30]} e5 {[%emt 0:00:23]} 32. a5 {[%emt 0:00:47]} exd4 {[%emt 0:00:26]} 33. Nxd4 {[%emt 0:00:15]} bxa5+ {[%emt 0:00:57]} 34. Kxa5 {[%emt 0:00:28]} Kc5 {[%emt 0:00:31]} 35. Nc6 {[%emt 0:01:54]} a6 {[%emt 0:00:29]} 36. Ne7 {[%emt 0:02:29]} axb5 {[%emt 0:03:25]} 37. Bxb5 {[%emt 0:00:05]} Bxg4 {[%emt 0:00:14]} 38. Nc6 {[%emt 0:01:23]} d4 {[%emt 0:00:09]} 39. Nb4 {[%emt 0:00:38]} Nh3 {[%emt 0:00:26]} 40. Nd3+ {[%emt 0:00:26]} Kd5 {[%emt 0:00:23]} 41. Kb4 {[%emt 0:00:40]} Be2 {[%emt 0:00:27]} 42. Bc4+ {[%emt 0:01:06]} Kd6 {[%emt 0:00:19]} 43. Ne1 {[%emt 0:02:42]} Bxc4 {[%emt 0:00:30]} 44. Kxc4 {[%emt 0:00:10]} Nxf2 {[%emt 0:00:11]} 45. Kxd4 {[%emt 0:00:11]} Ng4 {[%emt 0:01:14]} 46. Nf3 {[%emt 0:00:29]} Ne5 {[%emt 0:00:11]} 47. Nh4 {[%emt 0:00:44]} Ke6 {[%emt 0:00:15]} 48. Ke4 {[%emt 0:00:35]} g5 {[%emt 0:00:10]} 49. Nf5 {[%emt 0:00:15]} h5 {[%emt 0:00:28]} 50. Ng7+ {[%emt 0:00:22]} Kf7 {[%emt 0:00:26]} 51. Nxh5 {[%emt 0:00:43]} Kg6 {[%emt 0:00:21]} 52. Nxf6 {[%emt 0:03:05]} Kxf6 {[%emt 0:00:09]} 53. h3 {[%emt 0:00:08]} Ng6 {[%emt 0:00:30]} 54. Kf3 {[%emt 0:00:34]} Nh4+ {[%emt 0:00:29]} 55. Kg4 {[%emt 0:00:40]} Kg6 {[%emt 0:00:18]} 56. Kg3 {[%emt 0:00:29]} Kf5 {[%emt 0:00:09]} 57. Kf2 {[%emt 0:00:26]} Kf4 {[%emt 0:00:08]} 58. Kg1 {[%emt 0:00:08]} Kg3 {[%emt 0:00:10]} 59. Kh1 {[%emt 0:00:13]} Kxh3 {[%emt 0:00:11]} 60. Kg1 {[%emt 0:00:05]} g4 {[%emt 0:00:17]} 61. Kh1 {[%emt 0:00:06]} g3 {[%emt 0:00:08]} 62. Kg1 {[%emt 0:00:17]} g2 {[%emt 0:00:09]} 63. Kf2 {[%emt 0:00:04]} Kh2 {[%emt 0:00:52]} 64. Ke2 {[%emt 0:00:40]} g1=Q {[%emt 0:00:28]} 65. Kd3 {[%emt 0:00:10]} Qf2 {[%emt 0:00:17]} 66. Ke4 {[%emt 0:00:38]} Qd2 {[%emt 0:00:14]} 67. Ke5 {[%emt 0:00:15]} Qb4 {[%emt 0:00:18]} 68. Kd5 {[%emt 0:00:13]} Nf3 {[%emt 0:00:27]} 69. Ke6 {[%emt 0:00:16]} Qc5 {[%emt 0:00:11]} 70. Kf6 {[%emt 0:00:20]} Qe5+ {[%emt 0:00:09]} 71. Kg6 {[%emt 0:00:06]} Qf4 {[%emt 0:00:16]} 72. Kg7 {[%emt 0:00:22]} Qf5 {[%emt 0:00:15]} 73. Kh8 {[%emt 0:00:11]} Qd7 {[%emt 0:00:11]} 74. Kg8 {[%emt 0:00:06]} Ng5 {[%emt 0:00:10]} 75. Kf8 {[%emt 0:00:21]} Qf7# {[%emt 0:00:05]} 0-1

[Event "DVM U10 2024"]
[Site "Duesseldorf"]
[Date "2024.12.27"]
[Round "2"]
[White "Bienbeck, Matthis"]
[Black "Dombert, Johannes"]
[Result "1-0"]
[ECO "C42"]
[WhiteElo "1490"]
[BlackElo "1611"]
[Annotator "NA RC"]
[PlyCount "120"]
[EventDate "2024.12.23"]
[EventType "team-tourn"]
[EventRounds "7"]
[EventCountry "GER"]
[SourceTitle "playchess.com"]
[Source "ChessBase"]
[SourceQuality "1"]
[TimeControl "3300+5"]

1. e4 {[%emt 0:00:01]} e5 {[%emt 0:00:01]} 2. Nf3 {[%emt 0:00:09]} Nf6 {[%emt 0:00:04]} 3. Nxe5 {[%emt 0:00:05]} d6 {[%emt 0:00:04]} 4. Nf3 {[%emt 0:00:08]} Nxe4 {[%emt 0:00:05]} 5. d4 {[%emt 0:00:09]} d5 {[%emt 0:00:03]} 6. Bd3 {[%emt 0:00:15]} Bd6 {[%emt 0:00:42]} 7. c3 {[%emt 0:00:08]} O-O {[%emt 0:01:08]} 8. O-O {[%emt 0:00:06]} Re8 {[%emt 0:02:54]} 9. Re1 {[%emt 0:00:11]} Nd7 {[%emt 0:01:58]} 10. Nbd2 {[%emt 0:00:59]} Ndf6 {[%emt 0:00:46]} 11. Nf1 {[%emt 0:01:15]} h6 {[%emt 0:02:13]} 12. Qc2 {[%emt 0:00:42]} c5 {[%emt 0:02:16]} 13. b3 {[%emt 0:00:28]} Bd7 {[%emt 0:02:38]} 14. Ng3 {[%emt 0:00:38]} Nxg3 {[%emt 0:01:58]} 15. Rxe8+ {[%emt 0:02:45]} Qxe8 {[%emt 0:00:15]} 16. hxg3 {[%emt 0:00:07]} Rc8 {[%emt 0:04:54]} 17. Bd2 {[%emt 0:02:01]} Bc6 {[%emt 0:04:20]} 18. Re1 {[%emt 0:00:16]} Qd7 {[%emt 0:00:20]} 19. Bf5 {[%emt 0:00:13]} Qc7 {[%emt 0:01:27]} 20. Bxc8 {[%emt 0:00:07]} Qxc8 {[%emt 0:00:02]} 21. dxc5 {[%emt 0:00:46]} Bxc5 {[%emt 0:00:28]} 22. Be3 {[%emt 0:00:20]} Bd7 {[%emt 0:05:14]} 23. Bxc5 {[%emt 0:00:11]} Qxc5 {[%emt 0:00:12]} 24. Ne5 {[%emt 0:00:48]} Be6 {[%emt 0:00:37]} 25. b4 {[%emt 0:00:55]} Qc7 {[%emt 0:00:29]} 26. Nf3 {[%emt 0:00:22]} Ne4 {[%emt 0:01:33]} 27. Rc1 {[%emt 0:00:56]} Bf5 {[%emt 0:00:49]} 28. Qb3 {[%emt 0:01:32]} Be6 {[%emt 0:01:51]} 29. Nd4 {[%emt 0:00:36]} Qb6 {[%emt 0:02:31]} 30. Qc2 {[%emt 0:02:49]} a6 {[%emt 0:01:09]} 31. Nxe6 {[%emt 0:00:20]} fxe6 {[%emt 0:00:08]} 32. Qe2 {[%emt 0:01:31]} Nxg3 {[%emt 0:00:19]} 33. Qe5 {[%emt 0:01:14]} Ne4 {[%emt 0:00:14]} 34. Qd4 {[%emt 0:00:15]} Qd6 {[%emt 0:02:57]} 35. Qe3 {[%emt 0:01:56]} Nf6 {[%emt 0:01:16]} 36. Re1 {[%emt 0:00:35]} Kf7 {[%emt 0:00:41]} 37. Qe5 {[%emt 0:00:50]} Qxe5 {[%emt 0:00:17]} 38. Rxe5 {[%emt 0:00:09]} Ne4 {[%emt 0:00:35]} 39. c4 {[%emt 0:00:33]} Kf6 {[%emt 0:00:50]} 40. f4 {[%emt 0:00:12]} Nc3 {[%emt 0:00:56]} 41. cxd5 {[%emt 0:00:21]} Nxd5 {[%emt 0:00:09]} 42. Re4 {[%emt 0:01:48]} Nc3 {[%emt 0:00:10]} 43. Rc4 {[%emt 0:00:05]} Nxa2 {[%emt 0:00:05]} 44. Kf2 {[%emt 0:00:05]} b5 {[%emt 0:00:05]} 45. Rd4 {[%emt 0:00:05]} Nc3 {[%emt 0:00:05]} 46. Kf3 {[%emt 0:00:05]} Nd5 {[%emt 0:00:05]} 47. g4 {[%emt 0:00:05]} g6 {[%emt 0:00:05]} 48. Kg3 {[%emt 0:00:05]} Ne3 {[%emt 0:00:05]} 49. Rd6 {[%emt 0:00:05]} Nd5 {[%emt 0:00:05]} 50. Rxa6 {[%emt 0:00:05]} Nxb4 {[%emt 0:00:05]} 51. Rb6 {[%emt 0:00:05]} Nd5 {[%emt 0:00:05]} 52. Rxb5 {[%emt 0:00:05]} Ne7 {[%emt 0:00:05]} 53. g5+ {[%emt 0:00:05]} Kg7 {[%emt 0:00:05]} 54. Rb7 {[%emt 0:00:05]} Kf8 {[%emt 0:00:05]} 55. gxh6 {[%emt 0:00:05]} Nf5+ {[%emt 0:00:05]} 56. Kg4 {[%emt 0:00:05]} Nxh6+ {[%emt 0:00:05]} 57. Kg5 {[%emt 0:00:05]} Nf7+ {[%emt 0:00:05]} 58. Kf6 {[%emt 0:00:05]} Nd6 {[%emt 0:00:05]} 59. Rb8+ {[%emt 0:00:05]} Ne8+ {[%emt 0:00:05]} 60. Kxe6 {[%emt 0:00:05]} g5 {[%emt 0:00:05]} 1-0